bitfinex-derivatives/quotes_SOLF0:USTF0_20250409
["timestamp","ask_amount","ask_price","bid_price","bid_amount"]
[1744206024871,63.21769904,106.18,106.09,359.0]
[1744206025464,63.21769904,106.16,106.09,359.0]
[1744206025679,63.21769904,106.18,106.07,63.21769904]
[1744206025874,72.64269904,106.18,106.07,422.21769904]
[1744206026080,0.06414364,106.14,106.11,0.07191003]
[1744206026269,63.21769904,106.13,106.07,359.0]
[1744206026582,63.21769904,106.11,106.02,497.0]
[1744206026874,63.21769904,106.09,106.01,359.0]
[1744206027080,63.21769904,106.09,106.02,9.438]
[1744206027270,63.21769904,106.09,106.01,421.0]
[1744206027578,0.05979476,106.07,106.04,0.06145146]
[1744206027977,63.21769904,106.08,105.97,923.62429904]
[1744206028281,63.21769904,106.06,105.95,359.0]
[1744206028475,63.21769904,106.08,105.96,63.21769904]
[1744206028777,63.21769904,106.06,105.95,359.0]
[1744206028972,63.21769904,106.06,105.95,422.21769904]
[1744206029178,9.4385,106.03,105.95,422.21769904]
[1744206029377,0.06274659,106.02,105.99,0.07125642]
[1744206029678,9.4386,106.02,105.97,9.4429]
[1744206029877,63.28137187,106.02,105.99,8.333e-05]
[1744206030081,63.21769904,106.0,105.91,359.0]
[1744206030277,9.1694,106.03,105.93,63.21769904]
[1744206030582,9.1694,106.03,105.92,1.6422066]
[1744206030774,9.1694,106.03,105.94,63.21769904]
[1744206031178,0.06144513,106.0,105.97,0.06797836]
[1744206031477,4.513e-05,106.0,105.98,63.21769904]
[1744206031679,4.513e-05,106.0,105.99,9.4412]
[1744206032380,9.5207,106.11,105.99,9.44]
[1744206032582,9.5207,106.11,106.02,63.21769904]
[1744206032982,67.97019904,106.17,106.06,63.21769904]
[1744206033177,67.97019904,106.17,106.03,4.8122]
[1744206033378,67.97019904,106.17,106.06,63.21769904]
[1744206033579,63.21769904,106.17,106.07,559.64]
[1744206033785,63.21769904,106.17,106.09,0.06235405]
[1744206034083,63.21769904,106.17,106.09,9.4323]
[1744206034280,63.21769904,106.15,106.07,559.64]
[1744206034484,63.21769904,106.17,106.07,559.64]
[1744206034980,9.49059508,106.13,106.11,0.0609171]
[1744206035183,0.06099508,106.13,106.11,0.0609171]
[1744206036572,9.508e-05,106.13,106.12,9.4297]
[1744206036773,63.21769904,106.26,106.12,359.0]
[1744206037075,9.6463,106.35,106.2,63.21769904]
[1744206037287,63.21769904,106.34,106.22,63.21769904]
[1744206037576,63.21769904,106.32,106.22,63.21769904]
[1744206037783,63.21769904,106.32,106.21,560.93769904]
[1744206038083,0.0693387,106.28,106.26,0.06720764]
[1744206039972,63.21769904,106.27,106.16,560.69769904]
[1744206040173,0.0693387,106.28,106.19,9.4228]
[1744206040378,63.21769904,106.26,106.16,560.69769904]
[1744206040579,63.21769904,106.24,106.16,497.48]
[1744206040779,9.4211,106.22,106.17,9.425]
[1744206040980,63.21769904,106.26,106.16,497.48]
[1744206041179,0.06436426,106.21,106.18,0.06023948]
[1744206041481,63.21769904,106.24,106.16,506.9058]
[1744206041684,0.06020117,106.21,106.18,0.06930804]
[1744206042686,4.5912,106.34,106.2,126.43539808]
[1744206042886,4.5912,106.34,106.24,63.21769904]
[1744206043082,63.21769904,106.33,106.25,497.46]
[1744206043285,63.21769904,106.27,106.2,359.0]
[1744206043484,9.4199,106.23,106.19,9.4234]
[1744206043681,63.21769904,106.25,106.16,359.0]
[1744206043877,0.06810146,106.22,106.2,0.05963459]
[1744206044079,9.4217,106.21,106.2,0.05963459]
[1744206045689,9.4265,106.16,106.12,9.4295]
[1744206046091,63.21769904,106.19,106.11,359.0]
[1744206046295,9.4259,106.17,106.11,421.0]
[1744206046491,63.21769904,106.21,106.11,421.0]
[1744206046988,0.06322698,106.17,106.15,0.06645007]
[1744206047381,9.4223,106.21,106.14,63.21769904]
[1744206047578,0.06209204,106.17,106.15,0.06024808]
[1744206047989,9.432,106.24,106.11,497.46]
[1744206048185,9.432,106.24,106.15,0.06572745]
[1744206048186,0.06728027,106.17,106.15,0.06572745]
[1744206048389,9.4261,106.16,106.15,0.06572745]
[1744206048585,63.21769904,106.19,106.11,856.46]
[1744206048780,0.06289607,106.17,106.16,9.4261]
[1744206048979,9.432,106.24,106.14,422.27843341]
[1744206049186,63.21769904,106.23,106.14,359.0]
[1744206049388,63.21769904,106.21,106.14,359.0]
[1744206049585,63.21769904,106.19,106.11,497.46]
[1744206050085,0.06580842,106.16,106.14,0.07166588]
[1744206050486,9.427,106.15,106.14,0.07166588]
[1744206050694,0.06580842,106.16,106.14,0.07166588]
[1744206050897,9.427,106.15,106.14,0.07166588]
[1744206051194,63.21769904,106.15,106.07,359.0]
[1744206051394,9.432,106.1,106.06,9.4346]
[1744206051589,63.21769904,106.13,106.03,422.21769904]
[1744206051794,67.97479904,106.15,106.05,63.21769904]
[1744206051991,63.21769904,106.17,106.07,63.21769904]
[1744206052195,4.5628,106.18,106.09,63.21769904]
[1744206052392,4.5628,106.18,106.11,9.49439272]
[1744206052393,0.07072343,106.13,106.11,9.49439272]
[1744206052598,4.5628,106.18,106.09,422.21769904]
[1744206052900,4.7571,106.21,106.13,63.21769904]
[1744206053097,0.72975,106.23,106.13,422.21769904]
[1744206053293,0.72975,106.23,106.17,63.21769904]
[1744206053599,0.72975,106.23,106.14,497.54]
[1744206053989,0.72975,106.23,106.1,421.0]
[1744206054190,0.72975,106.23,106.07,359.0]
[1744206054395,0.06474164,106.18,106.15,0.06783126]
[1744206054591,0.06474164,106.18,106.17,9.4252]
[1744206054798,0.72975,106.23,106.16,63.21769904]
[1744206055004,0.72975,106.23,106.22,9.4208]
[1744206055301,0.66116555,106.23,106.16,359.0]
[1744206055599,0.66116555,106.23,106.14,63.21769904]
[1744206055796,0.66116555,106.23,106.16,63.21769904]
[1744206056099,0.06917901,106.2,106.17,0.06930331]
[1744206057705,0.06917901,106.2,106.18,9.4243]
[1744206057899,0.06917901,106.2,106.17,0.06930331]
[1744206058203,67.93239904,106.32,106.19,63.21769904]
[1744206058408,63.21769904,106.28,106.2,497.5]
[1744206058898,63.21769904,106.28,106.18,63.21769904]
[1744206059202,63.21769904,106.26,106.15,560.71769904]
[1744206059405,9.4199,106.23,106.22,0.06671652]
[1744206059601,63.21769904,106.26,106.15,919.71769904]
[1744206059903,9.4208,106.22,106.21,0.06655332]
[1744206060101,9.4915464,106.22,106.21,0.06655332]
[1744206060298,9.4259,106.17,106.15,856.5]
[1744206060496,9.4259,106.17,106.15,497.5]
[1744206060696,63.21769904,106.22,106.12,359.0]
[1744206060896,8.9644,106.24,106.1,497.5]
[1744206061098,63.21769904,106.16,106.06,368.2474]
[1744206061301,63.21769904,106.12,106.05,497.46]
[1744206061503,63.27817812,106.12,106.01,63.21769904]
[1744206061698,67.60809904,106.15,106.04,63.21769904]
[1744206061899,9.4336,106.08,106.04,9.4359]
[1744206062208,4.3904,106.15,106.04,359.0]
[1744206062407,63.21769904,106.14,106.07,9.4339]
[1744206062595,0.06337937,106.11,106.08,0.06885392]
[1744206063501,9.4323,106.09,106.08,0.06885392]
[1744206063706,63.21769904,106.09,106.02,497.46]
[1744206064009,9.4392,106.02,105.97,497.46]
[1744206064204,63.21769904,106.11,105.97,1397.46]
[1744206064411,67.60809904,106.15,106.09,9.4317]
[1744206064412,9.429,106.13,106.09,9.4317]
[1744206064600,63.21769904,106.14,106.06,497.56]
[1744206064907,9.4361,106.05,106.01,8.9519]
[1744206065108,63.21769904,106.09,106.01,4.4949]
[1744206065406,63.21769904,106.09,106.0,359.0]
[1744206065613,63.21769904,106.1,106.0,359.0]
[1744206065911,63.21769904,106.11,106.01,63.21769904]
[1744206066105,63.21769904,106.13,106.06,9.4346]
[1744206066307,0.06801367,106.07,106.04,0.07091609]
[1744206066507,9.4316,106.1,106.01,63.21769904]
[1744206066812,63.21769904,106.17,106.05,63.21769904]
[1744206067010,9.4292,106.13,106.09,9.4317]
[1744206067210,63.21769904,106.15,106.06,4.6548]
[1744206067507,63.21769904,106.15,106.02,62.0]
[1744206067508,63.21769904,106.07,106.0,359.0]
[1744206067709,63.21769904,106.1,106.0,359.0]
[1744206068013,0.06527296,106.05,106.02,0.06207112]
[1744206068509,63.282972,106.05,106.02,0.07117677]
[1744206068712,63.282972,106.05,105.96,363.6548]
[1744206068910,63.21769904,106.05,105.96,363.6548]
[1744206069503,63.21769904,106.07,105.96,426.87249904]
[1744206069812,1.88430374,106.14,106.0,63.21769904]
[1744206070106,63.21769904,106.11,106.0,422.21769904]
[1744206070312,63.21769904,106.11,106.01,561.09769904]
[1744206070517,63.21769904,106.12,106.02,62.0]
[1744206070715,67.68349904,106.14,106.03,63.21769904]
[1744206070905,4.4658,106.14,106.03,4.5456]
[1744206071106,0.06858106,106.1,106.07,0.06677231]
[1744206071306,63.21769904,106.18,106.08,561.09769904]
[1744206071609,63.21769904,106.18,106.08,920.09769904]
[1744206071816,9.5812,106.22,106.08,920.09769904]
[1744206072012,63.21769904,106.19,106.08,856.88]
[1744206072317,63.21769904,106.15,106.08,856.88]
[1744206072719,0.06993022,106.15,106.12,0.06030728]
[1744206073015,0.07055403,106.15,106.12,0.06030728]
[1744206073912,72.64649904,106.13,106.12,7.28e-06]
[1744206074211,9.4288,106.13,106.12,7.28e-06]
[1744206074803,0.07055403,106.15,106.12,7.28e-06]
[1744206075314,63.21769904,106.26,106.13,63.21769904]
[1744206075617,4.5996,106.28,106.15,63.21769904]
[1744206075817,67.81729904,106.28,106.17,63.21769904]
[1744206076020,63.21769904,106.26,106.18,497.84]
[1744206076402,0.06029973,106.23,106.21,0.06545397]
[1744206076807,63.21769904,106.26,106.18,497.84]
[1744206077007,0.06432954,106.23,106.21,0.06505215]
[1744206077220,2.954e-05,106.23,106.21,0.06505215]
[1744206077522,63.21769904,106.37,106.3,9.4132]
[1744206077715,63.21769904,106.37,106.28,497.82]
[1744206077916,9.4127,106.32,106.25,497.82]
[1744206078117,63.21769904,106.35,106.25,497.82]
[1744206078317,63.21769904,106.3,106.25,497.82]
[1744206078511,0.0636337,106.31,106.29,0.07066398]
[1744206078817,63.21769904,106.33,106.25,497.82]
[1744206079024,0.06210435,106.31,106.29,0.06945108]
[1744206079214,0.06210435,106.31,106.29,9.48355108]
[1744206079412,63.21769904,106.39,106.27,422.21769904]
[1744206079612,0.062639,106.31,106.29,0.07063198]
[1744206079919,9.4107,106.34,106.27,422.21769904]
[1744206080222,39.08494004,106.49,106.37,9.4074]
[1744206080419,9.3664,106.47,106.35,63.21769904]
[1744206080628,69.84290966,106.49,106.38,63.21769904]
[1744206080816,2.88580575,106.5,106.4,63.21769904]
[1744206081017,63.21769904,106.48,106.38,63.21769904]
[1744206081318,2.88580575,106.5,106.42,63.28055044]
[1744206081515,2.88580575,106.5,106.42,560.82055044]
[1744206081721,2.88580575,106.5,106.42,497.54]
[1744206081920,9.3989,106.47,106.42,506.9425]
[1744206082122,2.88580575,106.5,106.42,497.54]
[1744206082314,164.7458641,106.6,106.5,9.3953]
[1744206082512,164.7458641,106.6,106.5,497.16]
[1744206082713,63.21769904,106.58,106.5,497.16]
[1744206082918,63.276886,106.56,106.47,359.0]
[1744206083126,63.21769904,106.54,106.45,497.16]
[1744206083324,9.2587,106.56,106.45,560.37769904]
[1744206083514,72.47639904,106.56,106.46,62.0]
[1744206083822,72.47639904,106.56,106.45,560.37769904]
[1744206084027,9.2587,106.56,106.43,72.47339904]
[1744206084410,0.0671071,106.51,106.48,0.06153079]
[1744206084614,63.28480614,106.51,106.4,919.37769904]
[1744206084913,1.4412476,106.5,106.41,9.4038]
[1744206085118,1.44128391,106.49,106.4,919.37769904]
[1744206085320,63.21769904,106.52,106.4,919.37769904]
[1744206085720,63.21769904,106.54,106.42,63.21769904]
[1744206086024,0.06356623,106.47,106.45,0.06302307]
[1744206086218,1.43009372,106.46,106.45,0.06302307]
[1744206086424,67.68949904,106.55,106.44,63.21769904]
[1744206086623,0.06855856,106.47,106.44,63.28987083]
[1744206086926,67.68949904,106.55,106.45,62.0]
[1744206087128,63.21769904,106.57,106.45,62.0]
[1744206087326,63.21769904,106.6,106.48,63.21769904]
[1744206087625,63.21769904,106.58,106.48,422.21769904]
[1744206087922,63.21769904,106.56,106.48,359.0]
[1744206088118,0.0703535,106.54,106.52,0.0714442]
[1744206088323,1.41893492,106.53,106.52,0.0714442]
[1744206088514,1.41893492,106.53,106.48,359.0]
[1744206088716,1.41893492,106.52,106.49,9.3969]
[1744206088918,1.41893492,106.51,106.48,359.0]
[1744206089113,3.492e-05,106.5,106.48,359.0]
[1744206089323,63.21769904,106.62,106.49,63.21769904]
[1744206089524,4.8076,106.64,106.52,63.21769904]
[1744206089719,63.21769904,106.63,106.52,63.21769904]
[1744206089927,0.06336018,106.57,106.5,63.21769904]
[1744206090117,0.06336018,106.57,106.5,359.0]
[1744206090315,64.62557975,106.56,106.52,0.06486239]
[1744206090523,1.47092656,106.55,106.52,0.06486239]
[1744206090823,1.40788071,106.54,106.5,359.0]
[1744206091020,1.40788071,106.53,106.52,0.06578075]
[1744206091928,64.62557975,106.53,106.47,359.0]
[1744206092130,1.40788071,106.52,106.47,359.0]
[1744206092320,8.071e-05,106.52,106.5,63.21769904]
[1744206092526,4.4317,106.6,106.5,422.21769904]
[1744206092821,9.3908,106.56,106.51,62.0]
[1744206093123,63.21769904,106.59,106.5,359.0]
[1744206093331,0.06927862,106.55,106.53,9.3928]
[1744206093525,0.06927862,106.55,106.53,359.0]
[1744206093726,63.21769904,106.63,106.53,359.0]
[1744206093926,14.123,106.64,106.53,359.0]
[1744206094122,63.21769904,106.61,106.53,359.0]
[1744206094526,9.3908,106.56,106.53,359.0]
[1744206094721,63.21769904,106.61,106.5,63.21769904]
[1744206094918,9.45731432,106.56,106.53,0.06827233]
[1744206095127,0.06601432,106.56,106.53,0.06827233]
[1744206095321,63.21769904,106.63,106.52,63.21769904]
[1744206095528,0.07018573,106.56,106.53,0.06972159]
[1744206095735,63.21769904,106.63,106.52,422.21769904]
[1744206095931,0.060544,106.56,106.53,0.06108673]
[1744206096124,63.21769904,106.66,106.54,63.21769904]
[1744206096321,9.745e-05,106.56,106.55,8.8956]
[1744206096525,9.3798,106.69,106.64,9.3831]
[1744206096732,9.261,106.7,106.61,63.21769904]
[1744206096931,4.6809,106.7,106.61,422.21769904]
[1744206097133,63.21769904,106.73,106.61,359.0]
[1744206097329,63.21769904,106.71,106.62,500.4132]
[1744206097529,63.21769904,106.69,106.61,359.0]
[1744206097735,4.5801,106.74,106.65,0.06380711]
[1744206097935,63.21769904,106.72,106.65,0.06380711]
[1744206098133,9.3791,106.7,106.65,9.3823]
[1744206098330,63.21769904,106.73,106.67,0.06686171]
[1744206098638,9.3843,106.64,106.61,359.0]
[1744206098937,63.21769904,106.67,106.55,426.60699904]
[1744206099133,63.21769904,106.66,106.55,426.60699904]
[1744206099741,0.06296475,106.62,106.6,9.4576667]
[1744206100237,0.06296475,106.62,106.61,9.3863]
[1744206100440,0.06296475,106.62,106.6,0.0706667]
[1744206100741,0.06296475,106.62,106.6,422.28836574]
[1744206101037,1.87406296,106.72,106.6,431.66836574]
[1744206101238,63.21769904,106.73,106.61,63.21769904]
[1744206101439,63.21769904,106.69,106.6,426.85559904]
[1744206101737,63.21769904,106.7,106.58,63.21769904]
[1744206101937,63.21769904,106.68,106.57,63.21769904]
[1744206102239,63.21769904,106.64,106.61,6.185e-05]
[1744206102440,9.3854,106.62,106.61,6.185e-05]
[1744206102738,4.7283,106.67,106.55,4.3893]
[1744206102945,9.3895,106.58,106.54,505.232]
[1744206103139,4.7889,106.66,106.54,559.05769904]
[1744206103338,9.3879,106.6,106.55,9.3908]
[1744206103541,0.06977651,106.61,106.59,0.06706358]
[1744206103742,63.21769904,106.63,106.54,495.84]
[1744206103941,63.21769904,106.63,106.59,0.06672351]
[1744206104234,0.07113237,106.61,106.59,0.06672351]
[1744206104640,67.94599904,106.67,106.56,359.0]
[1744206104942,9.3872,106.6,106.59,0.06269788]
[1744206105245,63.21769904,106.64,106.54,495.84]
[1744206105637,0.06246876,106.61,106.58,0.06382385]
[1744206106035,63.21769904,106.62,106.52,422.21769904]
[1744206106240,0.06083417,106.61,106.58,0.07126491]
[1744206106441,63.21769904,106.6,106.58,0.07126491]
[1744206106642,53.82632438,106.6,106.52,359.0]
[1744206106946,63.21769904,106.6,106.52,359.0]
[1744206107253,63.21769904,106.64,106.55,9.3911]
[1744206107554,63.21769904,106.64,106.55,359.0]
[1744206107942,0.06593174,106.61,106.58,0.05944145]
[1744206108153,9.3881,106.59,106.58,0.05944145]
[1744206108948,9.45635114,106.6,106.58,0.05944145]
[1744206109341,0.06865114,106.6,106.58,0.05944145]
[1744206109845,9.3881,106.59,106.58,0.05944145]
[1744206110048,63.28635018,106.6,106.51,359.0]
[1744206110237,63.21769904,106.58,106.51,359.0]
[1744206110442,4.5623,106.59,106.51,359.0]
[1744206110739,63.21769904,106.57,106.47,360.63341939]
[1744206111047,63.21769904,106.58,106.47,422.21769904]
[1744206111247,0.06668299,106.54,106.51,0.06984015]
[1744206111440,9.3939,106.53,106.51,0.06984015]
[1744206111635,0.06668299,106.54,106.47,422.21769904]
[1744206111945,4.5623,106.59,106.51,63.28454947]
[1744206112146,0.06855398,106.52,106.51,422.28454947]
[1744206112345,4.5623,106.59,106.51,422.21769904]
[1744206112544,0.05925714,106.53,106.51,359.0]
[1744206112749,63.21769904,106.56,106.47,363.4921]
[1744206113048,9.3942,106.52,106.51,0.05958773]
[1744206113248,0.06772319,106.53,106.51,0.05958773]
[1744206113452,9.3942,106.52,106.51,0.05958773]
[1744206113942,72.61189904,106.52,106.51,8.773e-05]
[1744206114142,9.3942,106.52,106.51,8.773e-05]
[1744206114736,491.16691868,106.6,106.51,8.773e-05]
[1744206114941,63.21769904,106.52,106.5,145.49674269]
[1744206115137,9.3951,106.51,106.5,108.18394269]
[1744206115349,63.21769904,106.52,106.49,324.14266756]
[1744206115537,67.79199904,106.54,106.49,324.14266756]
[1744206115742,9.396,106.5,106.49,324.14266756]
[1744206116449,0.06442204,106.51,106.49,324.14266756]
[1744206116652,0.06442204,106.51,106.48,0.07084646]
[1744206117049,63.21769904,106.6,106.5,63.21769904]
[1744206117350,63.21769904,106.64,106.54,63.21769904]
[1744206117541,63.21769904,106.66,106.54,422.21769904]
[1744206117736,4.738,106.68,106.54,422.21769904]
[1744206117737,9.3809,106.68,106.6,63.21769904]
[1744206117948,63.21769904,106.72,106.6,422.21769904]
[1744206118143,0.06236777,106.65,106.63,0.07082735]
[1744206118345,63.21769904,106.72,106.61,63.21769904]
[1744206118548,1.63200225,106.76,106.67,63.21769904]
[1744206118747,63.21769904,106.8,106.71,63.21769904]
[1744206119050,63.21769904,106.8,106.69,500.6378]
[1744206119254,63.21769904,106.8,106.69,854.82]
[1744206119444,63.21769904,106.78,106.69,854.82]
[1744206119647,0.0628698,106.76,106.73,0.06959551]
[1744206120049,560.66828661,106.85,106.73,0.06959551]
[1744206120050,63.21769904,106.84,106.74,62.0]
[1744206120353,9.3673,106.83,106.77,72.58989904]
[1744206120652,4.5995,106.87,106.74,62.0]
[1744206120653,63.21769904,106.86,106.75,67.62499904]
[1744206120952,12.30662599,106.9,106.81,63.21769904]
[1744206121148,12.30662599,106.9,106.82,63.21769904]
[1744206121354,12.30662599,106.9,106.84,63.21769904]
[1744206121653,12.30662599,106.9,106.83,563.10499904]
[1744206121952,12.30662599,106.9,106.86,0.06456914]
[1744206122156,98.45300792,106.93,106.89,63.21769904]
[1744206122345,35.26038338,106.95,106.91,63.21769904]
[1744206122541,13.95298338,106.95,106.93,63.21769904]
[1744206122747,303.92039459,106.98,106.94,63.21769904]
[1744206123051,271.43435351,107.01,106.97,63.21769904]
[1744206123254,271.43435351,107.01,106.9,917.69769904]
[1744206123553,271.43435351,107.01,106.95,0.0624947]
[1744206123752,373.43435351,107.03,106.98,63.21769904]
[1744206123953,373.43435351,107.03,107.0,63.21769904]
[1744206124255,373.43435351,107.03,107.02,63.21769904]
[1744206124441,373.43435351,107.03,107.0,63.28443028]
[1744206124649,9.3504,107.02,107.0,0.06673124]
[1744206124947,63.21769904,107.01,106.85,1521.23539808]
[1744206125146,494.8,107.1,106.9,63.21769904]
[1744206125348,67.72949904,107.09,106.97,63.21769904]
[1744206125548,4.5118,107.09,106.97,63.21769904]
[1744206125758,39.08494004,107.15,106.86,496.67160771]
[1744206125946,63.21769904,107.02,106.81,494.8]
[1744206126151,0.06078921,106.98,106.96,0.0601927]
[1744206126654,0.06943718,106.98,106.96,63.2843817]
[1744206126849,0.06943718,106.98,106.96,0.06668266]
[1744206127046,0.06943718,106.98,106.96,504.22208266]
[1744206127248,0.06943718,106.98,106.96,0.06668266]
[1744206127644,0.06943718,106.98,106.84,63.21769904]
[1744206127645,72.62713622,106.98,106.84,63.21769904]
[1744206127945,63.21769904,106.95,106.85,1.87178287]
[1744206128148,9.3591,106.92,106.85,1.87178287]
[1744206128451,63.21769904,107.0,106.87,63.21769904]
[1744206128651,9.3539,106.98,106.91,63.21769904]
[1744206128846,63.21769904,106.99,106.92,0.0628882]
[1744206129154,9.3582,106.93,106.92,0.0628882]
[1744206129458,126.43539808,106.93,106.76,494.46]
[1744206129654,63.21769904,106.86,106.75,63.21769904]
[1744206129853,63.21769904,106.84,106.73,63.21769904]
[1744206130152,4.542,106.85,106.76,63.21769904]
[1744206130354,63.21769904,106.83,106.7,1457.67769904]
[1744206130553,63.27764431,106.82,106.72,9.3762]
[1744206130758,4.48504527,106.82,106.67,125.21769904]
[1744206130955,63.21769904,106.78,106.67,62.0]
[1744206131155,63.21769904,106.76,106.66,9.3817]
[1744206131455,63.21769904,106.72,106.61,63.21769904]
[1744206131647,63.21769904,106.73,106.6,63.21769904]
[1744206131954,39.08494004,106.89,106.7,126.43539808]
[1744206132161,4.4786,106.85,106.74,63.21769904]
[1744206132464,67.69629904,106.85,106.7,541.0]
[1744206132653,63.21769904,106.77,106.6,1098.51769904]
[1744206132959,63.21769904,106.82,106.65,63.21769904]
[1744206133163,67.69629904,106.85,106.75,63.21769904]
[1744206133164,4.4786,106.85,106.75,63.21769904]
[1744206133350,4.4786,106.85,106.77,63.21769904]
[1744206133550,557.67769904,106.9,106.79,63.21769904]
[1744206133749,63.21769904,106.86,106.75,9.3738]
[1744206133953,63.21769904,106.78,106.67,63.21769904]
[1744206134151,63.21769904,106.74,106.68,1.87476565]
[1744206134354,63.21769904,106.73,106.68,1.87476565]
[1744206134663,63.21769904,106.73,106.56,901.62685241]
[1744206134664,0.05941008,106.72,106.7,0.06770038]
[1744206134851,0.05941008,106.72,106.61,63.21769904]
[1744206135056,67.69629904,106.77,106.65,63.21769904]
[1744206135351,4.4786,106.77,106.67,63.21769904]
[1744206135554,63.21769904,106.73,106.62,63.21769904]
[1744206135755,63.21769904,106.73,106.59,494.46]
[1744206135756,63.21769904,106.71,106.6,63.21769904]
[1744206135957,63.21769904,106.71,106.59,557.67769904]
[1744206136257,63.28875497,106.69,106.57,63.21769904]
[1744206136462,126.43539808,106.58,106.23,359.0]
[1744206136656,63.21769904,106.36,106.24,8.9709]
[1744206136961,63.21769904,106.42,106.29,63.21769904]
[1744206137260,63.21769904,106.42,106.36,62.0]
[1744206137461,63.21769904,106.45,106.39,9.4049]
[1744206137661,126.43539808,106.45,106.34,0.07051039]
[1744206137859,63.21769904,106.4,106.34,0.07051039]
[1744206138060,9.2926,106.57,106.3,1035.64]
[1744206138261,63.21769904,106.45,106.3,1035.64]
[1744206138448,63.21769904,106.46,106.42,9.403]
[1744206138647,63.21769904,106.45,106.33,63.21769904]
[1744206138948,63.21769904,106.49,106.43,0.06529185]
[1744206139155,63.21769904,106.49,106.37,557.85769904]
[1744206139355,63.21769904,106.49,106.37,1098.85769904]
[1744206139553,63.21769904,106.49,106.37,494.64]
[1744206139865,63.21769904,106.46,106.34,9.0075]
[1744206140053,63.21769904,106.45,106.34,4.5851]
[1744206140255,0.06806091,106.44,106.42,0.07067616]
[1744206140552,9.2926,106.57,106.43,63.21769904]
[1744206140855,63.21769904,106.55,106.45,63.21769904]
[1744206141056,63.21769904,106.53,106.47,9.3984]
[1744206141255,63.21769904,106.53,106.43,63.21769904]
[1744206141256,63.21769904,106.55,106.45,63.21769904]
[1744206141458,63.21769904,106.55,106.4,963.21769904]
[1744206141667,0.07032447,106.51,106.49,0.0619753]
[1744206141964,63.21769904,106.51,106.4,422.21769904]
[1744206142263,63.21769904,106.51,106.4,359.0]
[1744206142564,65.09492824,106.54,106.4,422.21769904]
[1744206142757,1.8772292,106.54,106.42,63.21769904]
[1744206142965,1.8772292,106.54,106.44,63.21769904]
[1744206143161,0.05984012,106.49,106.47,0.07109572]
[1744206143362,63.27753916,106.49,106.39,1036.2]
[1744206143663,63.21769904,106.5,106.4,63.21769904]
[1744206144063,63.21769904,106.52,106.4,63.21769904]
[1744206144269,63.21769904,106.52,106.41,62.0]
[1744206144565,63.21769904,106.44,106.35,359.0]
[1744206144766,63.28287875,106.47,106.36,63.21769904]
[1744206144966,63.21769904,106.47,106.36,63.21769904]
[1744206145162,63.21769904,106.48,106.36,63.21769904]
[1744206145469,63.21769904,106.44,106.35,854.62]
[1744206145667,63.21769904,106.46,106.4,9.4041]
[1744206145867,0.06756718,106.41,106.38,0.06596251]
[1744206146071,6.718e-05,106.41,106.38,0.06596251]
[1744206146266,4.5957,106.47,106.37,63.21769904]
[1744206146462,4.5957,106.47,106.37,422.21769904]
[1744206146656,72.61219904,106.52,106.41,63.21769904]
[1744206146867,63.21769904,106.5,106.39,63.21769904]
[1744206147267,63.21769904,106.52,106.41,63.21769904]
[1744206147469,63.21769904,106.52,106.43,0.06350775]
[1744206147666,67.90249904,106.54,106.43,62.0]
[1744206147863,63.21769904,106.55,106.49,9.3962]
[1744206148167,63.21769904,106.51,106.43,62.0]
[1744206148373,63.21769904,106.49,106.4,359.0]
[1744206148570,63.21769904,106.49,106.38,67.60989904]
[1744206148771,0.07086531,106.48,106.46,0.06433423]
[1744206148973,63.21769904,106.49,106.38,426.60989904]
[1744206149168,63.21769904,106.47,106.38,359.0]
[1744206149365,63.21769904,106.47,106.37,495.78]
[1744206149670,72.74899904,106.49,106.37,495.78]
[1744206149871,63.21769904,106.47,106.37,495.78]
[1744206150169,72.74899904,106.49,106.37,63.21769904]
[1744206150473,72.74899904,106.49,106.35,63.21769904]
[1744206150474,9.3999,106.46,106.35,63.21769904]
[1744206150676,0.06390002,106.44,106.42,0.06175754]
[1744206150872,9.5313,106.49,106.39,63.21769904]
[1744206151072,63.21769904,106.57,106.45,63.21769904]
[1744206151264,63.21769904,106.57,106.46,557.92]
[1744206151469,0.06455975,106.49,106.46,62.0]
[1744206151671,0.06455975,106.49,106.41,495.92]
[1744206151872,63.21769904,106.52,106.4,359.0]
[1744206151873,63.21769904,106.5,106.4,359.0]
[1744206152071,63.28342861,106.46,106.4,359.0]
[1744206152277,72.68352861,106.46,106.41,9.4038]
[1744206152590,0.06572957,106.46,106.39,63.21769904]
[1744206152780,0.06572957,106.46,106.42,9.4025]